lending/lending_fUSD_20241229
["ID","MTS","AMOUNT","RATE_DAILY","PERIOD"]
[346972367,1735441846621,-500.0,0.00012993,2]
[346972368,1735441846630,-188.07830986,0.00012993,2]
[346972369,1735441846640,-500.0,0.00012993,2]
[346972370,1735441846649,-500.0,0.00012993,2]
[346972371,1735441846658,-500.0,0.00012993,2]
[346972372,1735441846668,-500.0,0.00012993,2]
[346972373,1735441846677,-500.0,0.00012993,2]
[346972374,1735441846686,-500.0,0.00012993,2]
[346972375,1735441846695,-500.0,0.00012993,2]
[346972376,1735441846704,-500.0,0.00012993,2]
[346972377,1735441846713,-500.0,0.00012993,2]
[346972378,1735441846723,-500.0,0.00012993,2]
[346972379,1735441846732,-500.0,0.00012993,2]
[346972380,1735441846742,-1088.08,0.00012993,2]
[346972381,1735441846751,-500.0,0.00012993,2]
[346972382,1735441846761,-155.57452,0.00012993,2]
[346972383,1735441846772,-500.0,0.00012993,2]
[346972384,1735441846782,-500.0,0.00012993,2]
[346972385,1735441846792,-587.700896,0.00012993,2]
[346972386,1735441846801,-381.23272668,0.00012993,2]
[346972387,1735441846811,-500.0,0.00012993,2]
[346972388,1735441846821,-500.0,0.00012993,2]
[346972389,1735441846830,-155.490406,0.00012993,2]
[346972390,1735441846839,-500.44420061,0.00012993,2]
[346972391,1735441846848,-500.0,0.00012993,2]
[346972392,1735441846857,-500.0,0.00012993,2]
[346972393,1735441846866,-500.0,0.00012993,2]
[346972394,1735441846876,-500.0,0.00012993,2]
[346972395,1735441846885,-500.0,0.00012993,2]
[346972396,1735441846896,-506.72493897,0.00012993,2]
[346972397,1735441846905,-411.71692,0.00012993,2]
[346972398,1735441846915,-500.0,0.00012993,2]
[346972399,1735441846923,-500.0,0.00012993,2]
[346972400,1735441846932,-500.0,0.00012993,2]
[346972401,1735441846941,-504.79147146,0.00012993,2]
[346972402,1735441846950,-500.0,0.00012993,2]
[346972403,1735441846959,-500.0,0.00012993,2]
[346972404,1735441846969,-500.0,0.00012993,2]
[346972405,1735441846978,-500.0,0.00012993,2]
[346972406,1735441846987,-500.0,0.00012993,2]
[346972407,1735441846996,-500.0,0.00012993,2]
[346972408,1735441847005,-501.14377558,0.00012993,2]
[346972409,1735441847014,-500.0,0.00012993,2]
[346972410,1735441847023,-504.45578082,0.00012993,2]
[346972411,1735441847032,-501.75410028,0.00012993,2]
[346972412,1735441847041,-500.0,0.00012993,2]
[346972413,1735441847050,-501.95253801,0.00012993,2]
[346972414,1735441847060,-500.0,0.00012993,2]
[346972415,1735441847070,-500.0,0.00012993,2]
[346972416,1735441847079,-500.0,0.00012993,2]
[346972417,1735441847090,-500.0,0.00012993,2]
[346972418,1735441847100,-500.0,0.00012993,2]
[346972419,1735441847110,-500.0,0.00012993,2]
[346972420,1735441847119,-500.0,0.00012993,2]
[346972421,1735441847128,-57.42173833,0.00012993,2]
[346972422,1735441847590,-442.57826167,0.00012993,2]
[346972423,1735441847600,-500.0,0.00012993,2]
[346972424,1735441847609,-500.0,0.00012993,2]
[346972425,1735441847618,-501.81773241,0.00012993,2]
[346972426,1735441847628,-500.0,0.00012993,2]
[346972427,1735441847637,-418.21297494,0.00012993,2]
[346972428,1735441847646,-501.6013316,0.00012993,2]
[346972429,1735441847655,-500.0,0.00012993,2]
[346972430,1735441847665,-500.0,0.00012993,2]
[346972431,1735441847674,-500.0,0.00012993,2]
[346972432,1735441847683,-500.0,0.00012993,2]
[346972433,1735441847692,-500.0,0.00012993,2]
[346972434,1735441847701,-500.0,0.00012993,2]
[346972435,1735441847710,-500.0,0.00012993,2]
[346972436,1735441847719,-501.66322558,0.00012993,2]
[346972437,1735441847729,-500.0,0.00012993,2]
[346972438,1735441847738,-2058.32,0.00012993,2]
[346972439,1735441847747,-556.51,0.00012993,2]
[346972440,1735441847756,-500.0,0.00012993,2]
[346972441,1735441847765,-502.36977414,0.00012993,2]
[346972442,1735441847774,-500.72028754,0.00012993,2]
[346972443,1735441847783,-500.0,0.00012993,2]
[346972444,1735441847793,-502.14461216,0.00012993,2]
[346972445,1735441847802,-621.55,0.00012993,2]
[346972446,1735441847812,-500.0,0.00012993,2]
[346972447,1735441847821,-500.0,0.00012993,2]
[346972448,1735441847830,-500.0,0.00012993,2]
[346972449,1735441847839,-500.0,0.00012993,2]
[346972450,1735441847848,-500.0,0.00012993,2]
[346972451,1735441847857,-500.0,0.00012993,2]
[346972452,1735441847866,-500.0,0.00012993,2]
[346972453,1735441847875,-500.0,0.00012993,2]
[346972454,1735441847885,-500.0,0.00012993,2]
[346972455,1735441847893,-500.0,0.00012993,2]
[346972456,1735441847903,-501.61466911,0.00012993,2]
[346972457,1735441847912,-500.0,0.00012993,2]
[346972458,1735441847921,-500.0,0.00012993,2]
[346972459,1735441847930,-500.0,0.00012993,2]
[346972460,1735441847940,-500.0,0.00012993,2]
[346972461,1735441847949,-500.0,0.00012993,2]
[346972462,1735441847958,-500.0,0.00012993,2]
[346972463,1735441847967,-500.0,0.00012993,2]
[346972464,1735441847976,-500.0,0.00012993,2]
[346972465,1735441847986,-500.0,0.00012993,2]
[346972466,1735441847995,-666.73,0.00012993,2]
[346972467,1735441848004,-500.0,0.00012993,2]
[346972468,1735441848013,-500.0,0.00012993,2]
[346972469,1735441848023,-596.22236673,0.00012993,2]
[346972470,1735441848032,-500.0,0.00012993,2]
[346972471,1735441848042,-500.0,0.00012993,2]
[346972472,1735441848050,-500.0,0.00012993,2]
[346972473,1735441848060,-500.0,0.00012993,2]
[346972474,1735441848069,-500.0,0.00012993,2]
[346972475,1735441848078,-500.0,0.00012993,2]
[346972476,1735441848087,-500.0,0.00012993,2]
[346972477,1735441848097,-500.0,0.00012993,2]
[346972478,1735441848106,-1013.72,0.00012993,2]
[346972479,1735441848116,-500.0,0.00012993,2]
[346972480,1735441848125,-500.0,0.00012993,2]
[346972481,1735441848134,-500.0,0.00012993,2]
[346972482,1735441848143,-500.97527732,0.00012993,2]
[346972483,1735441848152,-500.0,0.00012993,2]
[346972484,1735441848162,-500.0,0.00012993,2]
[346972485,1735441848171,-500.0,0.00012993,2]
[346972486,1735441848180,-634.45,0.00012993,2]
[346972487,1735441848189,-500.0,0.00012993,2]
[346972488,1735441848199,-500.0,0.00012993,2]
[346972489,1735441848208,-500.0,0.00012993,2]
[346972490,1735441848217,-500.0,0.00012993,2]
[346972491,1735441848226,-501.65280657,0.00012993,2]
[346972492,1735441848235,-500.0,0.00012993,2]
[346972493,1735441848245,-500.0,0.00012993,2]
[346972494,1735441848254,-500.0,0.00012993,2]
[346972495,1735441848263,-500.0,0.00012993,2]
[346972496,1735441848272,-500.0,0.00012993,2]
[346972497,1735441848282,-500.0,0.00012993,2]
[346972498,1735441848291,-502.45215875,0.00012993,2]
[346972499,1735441848300,-500.0,0.00012993,2]
[346972500,1735441848310,-507.48212583,0.00012993,2]
[346972501,1735441848319,-500.0,0.00012993,2]
[346972502,1735441848331,-500.0,0.00012993,2]
[346972503,1735441848340,-500.0,0.00012993,2]
[346972504,1735441848350,-504.49527226,0.00012993,2]
[346972505,1735441848359,-500.0,0.00012993,2]
[346972506,1735441848369,-500.0,0.00012993,2]
[346972507,1735441848378,-498.74077847,0.00012993,2]
[346972508,1735441848387,-500.0,0.00012993,2]
[346972509,1735441848396,-500.0,0.00012993,2]
[346972510,1735441848405,-196.72617538,0.00012993,2]
[346972511,1735441848415,-500.0,0.00012993,2]
[346972512,1735441848426,-500.0,0.00012993,2]
[346972513,1735441848436,-500.0,0.00012993,2]
[346972514,1735441848446,-500.0,0.00012993,2]
[346972515,1735441848455,-504.48488996,0.00012993,2]
[346972516,1735441848464,-505.23501865,0.00012993,2]
[346972517,1735441848473,-500.0,0.00012993,2]
[346972518,1735441848483,-500.0,0.00012993,2]
[346972519,1735441848492,-500.0,0.00012993,2]
[346972520,1735441848501,-500.0,0.00012993,2]
[346972521,1735441848510,-500.0,0.00012993,2]
[346972522,1735441848520,-841.51,0.00012993,2]
[346972523,1735441848530,-500.0,0.00012993,2]
[346972524,1735441848540,-500.0,0.00012993,2]
[346972525,1735441848549,-500.0,0.00012993,2]
[346972526,1735441848558,-500.0,0.00012993,2]
[346972527,1735441848568,-496.28745047,0.00012993,2]
[346972528,1735441848577,-500.0,0.00012993,2]
[346972529,1735441848586,-500.0,0.00012993,2]
[346972530,1735441848596,-500.0,0.00012993,2]
[346972531,1735441848605,-500.0,0.00012993,2]
[346972532,1735441848614,-500.0,0.00012993,2]
[346972533,1735441848623,-487.0096683,0.00012993,2]
[346972534,1735441848632,-500.0,0.00012993,2]
[346972535,1735441848642,-500.0,0.00012993,2]
[346972536,1735441848651,-500.0,0.00012993,2]
[346972537,1735441848660,-500.0,0.00012993,2]
[346972538,1735441848669,-503.55976269,0.00012993,2]
[346972539,1735441848678,-500.0,0.00012993,2]
[346972540,1735441848688,-500.0,0.00012993,2]
[346972541,1735441848697,-500.0,0.00012993,2]
[346972542,1735441848706,-500.0,0.00012993,2]
[346972543,1735441848716,-504.60374547,0.00012993,2]
[346972544,1735441848725,-500.0,0.00012993,2]
[346972545,1735441848736,-500.0,0.00012993,2]
[346972546,1735441848745,-500.0,0.00012993,2]
[346972547,1735441848754,-500.0,0.00012993,2]
[346972548,1735441848764,-500.0,0.00012993,2]
[346972549,1735441848774,-503.40569709,0.00012993,2]
[346972550,1735441848784,-500.0,0.00012993,2]
[346972551,1735441848793,-500.0,0.00012993,2]
[346972552,1735441848803,-500.0,0.00012993,2]
[346972553,1735441848812,-500.0,0.00012993,2]
[346972554,1735441848822,-500.0,0.00012993,2]
[346972555,1735441848831,-500.0,0.00012993,2]
[346972556,1735441848840,-500.0,0.00012993,2]
[346972557,1735441848850,-500.0,0.00012993,2]
[346972558,1735441848859,-500.0,0.00012993,2]
[346972559,1735441848869,-500.0,0.00012993,2]
[346972560,1735441848878,-613.48,0.00012993,2]
[346972561,1735441848887,-500.0,0.00012993,2]
[346972562,1735441848896,-500.0,0.00012993,2]
[346972563,1735441848905,-500.0,0.00012993,2]
[346972564,1735441848915,-500.0,0.00012993,2]
[346972565,1735441848924,-500.0,0.00012993,2]
[346972566,1735441848933,-500.0,0.00012993,2]
[346972567,1735441848943,-500.0,0.00012993,2]
[346972568,1735441848952,-500.0,0.00012993,2]
[346972569,1735441848961,-6657.07,0.00012993,2]
[346972570,1735441848971,-500.0,0.00012993,2]
[346972571,1735441848980,-500.0,0.00012993,2]
[346972572,1735441848989,-500.0,0.00012993,2]
[346972573,1735441848998,-504.55401398,0.00012993,2]
[346972574,1735441849007,-562.88,0.00012993,2]
[346972575,1735441849018,-500.0,0.00012993,2]
[346972576,1735441849027,-500.0,0.00012993,2]
[346972577,1735441849036,-500.0,0.00012993,2]
[346972578,1735441849046,-505.48619345,0.00012993,2]
[346972579,1735441849055,-500.0,0.00012993,2]
[346972580,1735441849064,-500.0,0.00012993,2]
[346972581,1735441849074,-500.0,0.00012993,2]
[346972582,1735441849083,-500.0,0.00012993,2]
[346972583,1735441849093,-500.0,0.00012993,2]
[346972584,1735441849103,-500.0,0.00012993,2]
[346972585,1735441849112,-500.0,0.00012993,2]
[346972586,1735441849122,-500.0,0.00012993,2]
[346972587,1735441849131,-500.0,0.00012993,2]
[346972588,1735441849140,-500.0,0.00012993,2]
[346972589,1735441849300,-505.14163028,0.00012993,2]
[346972590,1735441849310,-500.0,0.00012993,2]
[346972591,1735441849320,-2241.89,0.00012993,2]
[346972592,1735441849333,-510.42141628,0.00012993,2]
[346972593,1735441849342,-500.0,0.00012993,2]
[346972594,1735441849352,-500.0,0.00012993,2]
[346972595,1735441849362,-504.10805003,0.00012993,2]
[346972596,1735441849373,-500.0,0.00012993,2]
[346972597,1735441849383,-500.0,0.00012993,2]
[346972598,1735441849393,-856.39,0.00012993,2]
[346972599,1735441849402,-667.34,0.00012993,2]
[346972600,1735441849413,-500.0,0.00012993,2]
[346972601,1735441849424,-500.0,0.00012993,2]
[346972602,1735441849434,-500.0,0.00012993,2]
[346972603,1735441849443,-535.23,0.00012993,2]
[346972604,1735441849453,-500.0,0.00012993,2]
[346972605,1735441849462,-1120.21,0.00012993,2]
[346972606,1735441849472,-500.0,0.00012993,2]
[346972607,1735441849481,-500.0,0.00012993,2]
[346972608,1735441849491,-500.0,0.00012993,2]
[346972609,1735441849500,-500.0,0.00012993,2]
[346972610,1735441849510,-501.70463932,0.00012993,2]
[346972611,1735441849520,-500.0,0.00012993,2]
[346972612,1735441849529,-500.0,0.00012993,2]
[346972613,1735441849539,-500.0,0.00012993,2]
[346972614,1735441849548,-513.05725619,0.00012993,2]
[346972615,1735441849557,-500.0,0.00012993,2]
[346972616,1735441849566,-2040.56,0.00012993,2]
[346972617,1735441849575,-500.0,0.00012993,2]
[346972618,1735441849584,-504.17271635,0.00012993,2]
[346972619,1735441849594,-500.0,0.00012993,2]
[346972620,1735441849603,-500.0,0.00012993,2]
[346972621,1735441849613,-507.31184843,0.00012993,2]
[346972622,1735441849622,-500.0,0.00012993,2]
[346972623,1735441849632,-500.0,0.00012993,2]
[346972624,1735441849641,-500.0,0.00012993,2]
[346972625,1735441849650,-500.0,0.00012993,2]
[346972626,1735441849660,-500.0,0.00012993,2]
[346972627,1735441849670,-511.6300703,0.00012993,2]
[346972628,1735441849680,-7557.22,0.00012993,2]
[346972629,1735441849690,-500.0,0.00012993,2]
[346972630,1735441849700,-500.0,0.00012993,2]
[346972631,1735441849709,-500.0,0.00012993,2]
[346972632,1735441849719,-276.2741337,0.00012993,2]
[346972633,1735441849728,-500.0,0.00012993,2]
[346972634,1735441849737,-500.0,0.00012993,2]
[346972635,1735441849747,-1248.96,0.00012993,2]
[346972636,1735441849756,-500.0,0.00012993,2]
[346972637,1735441849766,-500.0,0.00012993,2]
[346972638,1735441849775,-500.0,0.00012993,2]
[346972639,1735441849785,-512.85145624,0.00012993,2]
[346972640,1735441849794,-500.0,0.00012993,2]
[346972641,1735441849804,-500.0,0.00012993,2]
[346972642,1735441849813,-510.94263587,0.00012993,2]
[346972643,1735441849822,-500.0,0.00012993,2]
[346972644,1735441849832,-500.0,0.00012993,2]
[346972645,1735441849842,-500.0,0.00012993,2]
[346972646,1735441849852,-500.0,0.00012993,2]
[346972647,1735441849862,-587.14,0.00012993,2]
[346972648,1735441849871,-500.0,0.00012993,2]
[346972649,1735441849881,-500.0,0.00012993,2]
[346972650,1735441849890,-500.0,0.00012993,2]
[346972651,1735441849900,-500.0,0.00012993,2]
[346972652,1735441849909,-502.80812023,0.00012993,2]
[346972653,1735441849918,-528.52,0.00012993,2]
[346972654,1735441849928,-500.0,0.00012993,2]
[346972655,1735441849937,-500.0,0.00012993,2]
[346972656,1735441849946,-500.0,0.00012993,2]
[346972657,1735441849956,-500.0,0.00012993,2]
[346972658,1735441849965,-500.0,0.00012993,2]
[346972659,1735441849974,-500.0,0.00012993,2]
[346972660,1735441849984,-190.52102415,0.00012993,2]
[346972661,1735441849993,-500.0,0.00012993,2]
[346972662,1735441850004,-950.78,0.00012993,2]
[346972663,1735441850016,-500.0,0.00012993,2]
[346972664,1735441850025,-500.0,0.00012993,2]
[346972665,1735441850035,-500.0,0.00012993,2]
[346972666,1735441850044,-500.0,0.00012993,2]
[346972667,1735441850055,-500.0,0.00012993,2]
[346972668,1735441850066,-500.0,0.00012993,2]
[346972669,1735441850076,-500.0,0.00012993,2]
[346972670,1735441850086,-500.0,0.00012993,2]
[346972671,1735441850096,-500.0,0.00012993,2]
[346972672,1735441850105,-684.29,0.00012993,2]
[346972673,1735441850115,-500.0,0.00012993,2]
[346972674,1735441850125,-500.0,0.00012993,2]
[346972675,1735441850135,-500.0,0.00012993,2]
[346972676,1735441850145,-500.0,0.00012993,2]
[346972677,1735441850155,-648.63587505,0.00012993,2]
[346972678,1735441850164,-501.84990575,0.00012993,2]
[346972679,1735441850173,-1118.92,0.00012993,2]
[346972680,1735441850183,-500.0,0.00012993,2]
[346972681,1735441850193,-504.36565086,0.00012993,2]
[346972682,1735441850203,-500.0,0.00012993,2]
[346972683,1735441850213,-500.0,0.00012993,2]
[346972684,1735441850223,-500.0,0.00012993,2]
[346972685,1735441850232,-1509.54,0.00012993,2]
[346972686,1735441850242,-500.0,0.00012993,2]
[346972687,1735441850252,-500.0,0.00012993,2]
[346972688,1735441850261,-500.0,0.00012993,2]
[346972689,1735441850271,-500.0,0.00012993,2]
[346972690,1735441850280,-501.95199209,0.00012993,2]
[346972691,1735441850290,-500.0,0.00012993,2]
[346972692,1735441850299,-500.0,0.00012993,2]
[346972693,1735441850308,-500.0,0.00012993,2]
[346972694,1735441850318,-5820.08,0.00012993,2]
[346972695,1735441850328,-500.0,0.00012993,2]
[346972696,1735441850339,-500.0,0.00012993,2]
[346972697,1735441850348,-500.0,0.00012993,2]
[346972698,1735441850357,-581.56735833,0.00012993,2]
[346972699,1735441850367,-500.0,0.00012993,2]
[346972700,1735441850377,-500.0,0.00012993,2]
[346972701,1735441850387,-500.0,0.00012993,2]
[346972702,1735441850396,-500.0,0.00012993,2]
[346972703,1735441850407,-500.0,0.00012993,2]
[346972704,1735441850416,-500.0,0.00012993,2]
[346972705,1735441850425,-500.0,0.00012993,2]
[346972706,1735441850434,-500.0,0.00012993,2]
[346972707,1735441850444,-500.0,0.00012993,2]
[346972708,1735441850453,-500.0,0.00012993,2]
[346972709,1735441850462,-500.94692906,0.00012993,2]
[346972710,1735441850472,-500.0,0.00012993,2]
[346972711,1735441850481,-500.0,0.00012993,2]
[346972712,1735441850490,-500.0,0.00012993,2]
[346972713,1735441850500,-500.0,0.00012993,2]
[346972714,1735441850509,-489.75261825,0.00012993,2]
[346972715,1735441850518,-500.0,0.00012993,2]
[346972716,1735441850529,-500.0,0.00012993,2]
[346972717,1735441850539,-379.75494794,0.00012993,2]
[346972718,1735441850549,-500.0,0.00012993,2]
[346972719,1735441850559,-500.0,0.00012993,2]
[346972720,1735441850568,-500.0,0.00012993,2]
[346972721,1735441850577,-4325.7,0.00012993,2]
[346972722,1735441850587,-500.0,0.00012993,2]
[346972723,1735441850597,-500.0,0.00012993,2]
[346972724,1735441850606,-500.0,0.00012993,2]
[346972725,1735441850615,-500.0,0.00012993,2]
[346972726,1735441850625,-560.35283286,0.00012993,2]
[346972727,1735441850634,-500.0,0.00012993,2]
[346972728,1735441850643,-500.0,0.00012993,2]
[346972729,1735441850653,-500.0,0.00012993,2]
[346972730,1735441850662,-500.0,0.00012993,2]
[346972731,1735441850672,-505.54096411,0.00012993,2]
[346972732,1735441850682,-503.86084815,0.00012993,2]
[346972733,1735441850691,-500.91606421,0.00012993,2]
[346972734,1735441850700,-500.0,0.00012993,2]
[346972735,1735441850710,-500.0,0.00012993,2]
[346972736,1735441850719,-692.21,0.00012993,2]
[346972737,1735441850728,-500.0,0.00012993,2]
[346972738,1735441850738,-500.0,0.00012993,2]
[346972739,1735441850747,-500.0,0.00012993,2]
[346972740,1735441850757,-506.55700899,0.00012993,2]
[346972741,1735441850767,-500.0,0.00012993,2]
[346972742,1735441850777,-500.0,0.00012993,2]
[346972743,1735441850786,-500.0,0.00012993,2]
[346972744,1735441850795,-500.0,0.00012993,2]
[346972745,1735441850805,-500.0,0.00012993,2]
[346972746,1735441850814,-500.0,0.00012993,2]
[346972747,1735441850823,-500.0,0.00012993,2]
[346972748,1735441850833,-500.0,0.00012993,2]
[346972749,1735441850842,-500.0,0.00012993,2]
[346972750,1735441850851,-500.0,0.00012993,2]
[346972751,1735441850861,-919.05,0.00012993,2]
[346972752,1735441850870,-500.0,0.00012993,2]
[346972753,1735441850880,-500.0,0.00012993,2]
[346972754,1735441850890,-500.0,0.00012993,2]
[346972755,1735441850900,-500.0,0.00012993,2]
[346972756,1735441850909,-500.0,0.00012993,2]
[346972757,1735441850919,-500.0,0.00012993,2]
[346972758,1735441850929,-500.0,0.00012993,2]
[346972759,1735441850938,-500.0,0.00012993,2]
[346972760,1735441850948,-500.0,0.00012993,2]
[346972761,1735441850957,-500.0,0.00012993,2]
[346972762,1735441850966,-4185.68,0.00012993,2]
[346972763,1735441850977,-500.0,0.00012993,2]
[346972764,1735441850987,-500.0,0.00012993,2]
[346972765,1735441850996,-500.0,0.00012993,2]
[346972766,1735441851006,-500.0,0.00012993,2]
[346972767,1735441851016,-500.0,0.00012993,2]
[346972768,1735441851028,-426.5020276,0.00012993,2]
[346972769,1735441851037,-500.0,0.00012993,2]
[346972770,1735441851046,-500.0,0.00012993,2]
[346972771,1735441851056,-500.0,0.00012993,2]
[346972772,1735441851065,-502.5569401,0.00012993,2]
[346972773,1735441851074,-500.0,0.00012993,2]
[346972774,1735441851083,-505.96422546,0.00012993,2]
[346972775,1735441851093,-500.0,0.00012993,2]
[346972776,1735441851102,-500.0,0.00012993,2]
[346972777,1735441851111,-500.0,0.00012993,2]
[346972778,1735441851121,-500.0,0.00012993,2]
[346972779,1735441851130,-324.2957394,0.00012993,2]
[346972780,1735441851140,-411.38804502,0.00012993,2]
[346972786,1735442520138,4000.0,0.00021,120]
[346972988,1735443037689,-763.1,9.795e-05,2]
[346972989,1735443037698,-1057.0,0.00010076,2]
[346972990,1735443037708,-292.97,0.00010137,2]
[346972991,1735443037717,-1057.0,0.00010606,2]
[346972992,1735443037725,-309.89245904,0.00011108,2]
[346972993,1735443037736,-2010.60960196,0.00011108,2]
[346972994,1735443037745,-1057.0,0.00011164,2]
[346972995,1735443037754,-529.27,0.00011273,2]
[346972996,1735443037763,-198.44727871,0.00011294,2]
[346972997,1735443037814,-101.55272129,0.00011294,2]
[346972998,1735443037824,-1219.68592415,0.00011295,2]
[346972999,1735443037835,-5833.10407585,0.00011295,2]
[346973000,1735443037847,-250.0,0.00011337,2]
[346973001,1735443037856,-400.0,0.00011454,2]
[346973002,1735443037865,-250.0,0.00011497,2]
[346973003,1735443037875,-250.0,0.0001162,2]
[346973004,1735443037883,-1057.0,0.00011752,2]
[346973005,1735443037893,-15690.49276449,0.0001198,2]
[346973018,1735443042634,-650.0,0.0001198,2]
[346973019,1735443042646,-30864.00906088,0.0001198,2]
[346973020,1735443042657,-862.36,0.00012017,2]
[346973021,1735443042668,-155.41,0.00012026,2]
[346973022,1735443042678,-155.41,0.00012033,2]
[346973023,1735443042689,-1000.0,0.00012036,2]
[346973024,1735443042698,-155.41,0.0001204,2]
[346973025,1735443042707,-155.41,0.00012046,2]
[346973026,1735443042716,-155.41,0.00012053,2]
[346973027,1735443042727,-763.1,0.00012059,2]
[346973028,1735443042736,-155.41,0.0001206,2]
[346973029,1735443042746,-155.41,0.00012066,2]
[346973030,1735443042756,-155.41,0.00012073,2]
[346973031,1735443042765,-155.41,0.0001208,2]
[346973032,1735443042775,-155.41,0.00012086,2]
[346973033,1735443042785,-151.63,0.00012278,2]
[346973034,1735443042795,-385.466,0.0001235,2]
[346973035,1735443042804,-379.18,0.0001235,2]
[346973036,1735443042815,-373.06,0.0001235,2]
[346973037,1735443042826,-381.33,0.0001235,2]
[346973038,1735443042835,-374.96,0.0001235,2]
[346973039,1735443042849,-369.56,0.0001235,2]
[346973040,1735443042858,-377.29,0.0001235,2]
[346973041,1735443042868,-375.16,0.0001235,2]
[346973042,1735443042877,-375.61,0.0001235,2]
[346973043,1735443042887,-377.24,0.0001235,2]
[346973044,1735443042896,-1057.0,0.0001237,2]
[346973045,1735443042905,-150.0,0.00012378,2]
[346973046,1735443042914,-436.21,0.00012378,2]
[346973047,1735443042923,-150.0,0.00012378,2]
[346973048,1735443042934,-422.95,0.00012378,2]
[346973049,1735443042944,-420.0,0.00012408,2]
[346973050,1735443042953,-200.0,0.00012503,2]
[346973051,1735443042962,-215.71577431,0.0001279,2]
[346973052,1735443042972,-369.5,0.0001287,2]
[346973053,1735443042981,-371.17,0.0001287,2]
[346973054,1735443042990,-376.79,0.0001287,2]
[346973055,1735443042999,-1281.3866,0.00012892,2]
[346973056,1735443043008,-5461.77,0.00012893,2]
[346973058,1735443043017,-9999.99,0.00012893,2]
[346973060,1735443043026,-2124.12318502,0.00012893,2]
[346973062,1735443043038,-285.32888158,0.00012893,2]
[346973066,1735443043072,-489.5079334,0.00012893,2]
[346973068,1735443043081,-652.7576175,0.00012893,2]
[346973070,1735443043093,-2493.1,0.00012893,2]
[346973074,1735443043131,-488.39281316,0.00012893,2]
[346973076,1735443043142,-770.69613598,0.00012893,2]
[346973078,1735443043153,-610.98651663,0.00012893,2]
[346973080,1735443043164,-290.96263229,0.00012893,2]
[346973092,1735443045733,-2959.89966421,0.00012893,2]
[346973093,1735443045745,-1382.5,0.00012893,2]
[346973094,1735443045758,-305.37491309,0.00012893,2]
[346973095,1735443045871,-4109.05887599,0.00012893,2]
[346973096,1735443045882,-500.0,0.00012893,2]
[346973105,1735443686266,25000.0,0.0002,120]
[346973251,1735444231926,-574.23912778,0.00010019,2]
[346973252,1735444232158,-160.24087222,0.00010019,2]
[346973253,1735444232168,-157.1,0.00010137,2]
[346973254,1735444232178,-150.29,0.00010519,2]
[346973255,1735444232187,-263.4,0.00011647,2]
[346973256,1735444232196,-434.5,0.00011745,2]
[346973257,1735444232205,-689.88,0.0001176,2]
[346973258,1735444232215,-4439.21,0.00011851,2]
[346973259,1735444232224,-288.58,0.0001187,2]
[346973260,1735444232235,-250.0,0.00011883,2]
[346973261,1735444232244,-250.0,0.000119,2]
[346973262,1735444232253,-150.0,0.00011918,2]